bitfinex-derivatives/quotes_BTCF0:USTF0_20241210
["timestamp","ask_amount","ask_price","bid_price","bid_amount"]
[1733842718327,0.23366825,97730.0,97719.0,0.051143]
[1733842719033,0.23366825,97730.0,97729.0,0.00012]
[1733842719334,0.36132001,97732.0,97729.0,0.00012]
[1733842719536,0.001,97730.0,97729.0,0.00012]
[1733842719737,0.0011107,97730.0,97729.0,0.00012]
[1733842719933,0.051143,97720.0,97719.0,0.016]
[1733842720235,0.411943,97720.0,97719.0,0.016]
[1733842721436,0.411943,97720.0,97719.0,0.007]
[1733842722037,0.3608,97720.0,97701.0,0.00010932]
[1733842722226,0.051152,97702.0,97701.0,0.00010932]
[1733842722729,0.00052001,97704.0,97702.0,0.051152]
[1733842723037,0.3608,97712.0,97701.0,0.05126232]
[1733842723038,6e-05,97702.0,97701.0,0.05126232]
[1733842724135,6e-05,97702.0,97701.0,0.41206232]
[1733842724436,0.0001107,97730.0,97729.0,0.051138]
[1733842724825,0.0001107,97730.0,97729.0,0.00012]
[1733842725631,0.0001107,97730.0,97729.0,0.051258]
[1733842726141,0.0001107,97730.0,97729.0,0.055258]
[1733842726336,0.0001107,97730.0,97729.0,0.00412]
[1733842726531,0.0532487,97730.0,97729.0,0.00412]
[1733842726833,0.0021107,97730.0,97729.0,0.00412]
[1733842727231,0.0021107,97730.0,97729.0,0.00512]
[1733842727232,0.0001107,97730.0,97729.0,0.00512]
[1733842727827,0.0001107,97730.0,97729.0,0.00112]
[1733842729239,0.0011107,97730.0,97729.0,0.00012]
[1733842729640,0.0011107,97730.0,97729.0,0.051258]
[1733842730143,0.0021107,97730.0,97729.0,0.051258]
[1733842730436,0.0021107,97730.0,97729.0,0.00012]
[1733842731832,0.0021107,97730.0,97729.0,0.051258]
[1733842732444,0.0001107,97730.0,97729.0,0.00212]
[1733842732635,0.3608,97742.0,97729.0,0.36292]
[1733842732835,0.00511556,97741.0,97736.0,0.051134]
[1733842733038,0.00511556,97741.0,97729.0,0.36372]
[1733842733246,0.00511556,97741.0,97738.0,0.051133]
[1733842733845,9.976e-05,97740.0,97739.0,0.03783362]
[1733842734035,0.05123276,97740.0,97739.0,0.03783362]
[1733842734233,0.051133,97739.0,97731.0,0.051137]
[1733842734429,0.051133,97739.0,97732.0,0.051136]
[1733842735149,0.23376801,97740.0,97733.0,0.03788902]
[1733842735440,0.051136,97734.0,97726.0,0.05114]
[1733842735633,0.36132001,97736.0,97726.0,0.05114]
[1733842735834,6e-05,97727.0,97726.0,0.05114]
[1733842736038,6e-05,97727.0,97726.0,0.41194]
[1733842736237,9.976e-05,97740.0,97739.0,0.051133]
[1733842736539,0.12175893,97761.0,97739.0,0.051133]
[1733842736540,0.09156128,97764.0,97759.0,0.051123]
[1733842736742,0.0051144,97763.0,97747.0,0.3608]
[1733842736944,0.23366825,97760.0,97748.0,0.03781552]
[1733842737247,0.23366825,97760.0,97747.0,0.411929]
[1733842737248,0.051128,97750.0,97739.0,0.3608]
[1733842737441,0.28479625,97750.0,97740.0,0.03778756]
[1733842737746,9.002e-05,97749.0,97748.0,0.051128]
[1733842737953,9.002e-05,97749.0,97748.0,0.08891556]
[1733842738632,9.002e-05,97749.0,97748.0,0.44977572]
[1733842739232,9.002e-05,97749.0,97748.0,0.45277572]
[1733842739437,9.002e-05,97749.0,97748.0,0.414928]
[1733842739943,9.002e-05,97749.0,97748.0,0.415928]
[1733842740142,9.002e-05,97749.0,97748.0,0.423928]
[1733842740449,9.002e-05,97749.0,97748.0,0.012]
[1733842740653,0.05121802,97749.0,97748.0,0.012]
[1733842741542,0.05121802,97749.0,97748.0,0.008]
[1733842741741,0.05121802,97749.0,97748.0,0.012]
[1733842742041,0.05121802,97749.0,97748.0,0.011]
[1733842742549,0.05121802,97749.0,97708.0,0.051149]
[1733842742550,0.44503761,97749.0,97693.0,0.3608]
[1733842742846,0.411951,97705.0,97702.0,0.03804896]
[1733842743150,0.3608,97713.0,97702.0,0.051152]
[1733842743151,0.0001215,97704.0,97702.0,0.051152]
[1733842743443,0.0001215,97704.0,97703.0,0.03804691]
[1733842743644,0.1830302,97730.0,97715.0,0.051146]
[1733842743645,0.09158761,97716.0,97715.0,0.051146]
[1733842743842,0.09158761,97718.0,97703.0,0.03804691]
[1733842744040,0.3608,97705.0,97704.0,0.03797679]
[1733842744237,0.051151,97704.0,97700.0,0.1]
[1733842744440,0.051151,97704.0,97700.0,0.151153]
[1733842744654,6e-05,97702.0,97700.0,0.1]
[1733842745545,0.051212,97702.0,97701.0,0.00910932]
[1733842745938,0.051165,97678.0,97662.0,0.30427971]
[1733842746145,0.7216,97663.0,97659.0,0.18199392]
[1733842746345,0.7216,97663.0,97632.0,0.30427971]
[1733842746346,0.12213095,97660.0,97649.0,0.18199392]
[1733842746650,0.12213095,97660.0,97605.0,0.18199392]
[1733842746651,0.051196,97620.0,97605.0,0.18199392]
[1733842746949,0.3608,97614.0,97612.0,8.233e-05]
[1733842747339,0.23366825,97615.0,97612.0,8.233e-05]
[1733842747340,0.3608,97613.0,97612.0,8.233e-05]
[1733842748349,0.411999,97613.0,97612.0,8.233e-05]
[1733842749151,0.711999,97613.0,97612.0,8.233e-05]
[1733842749355,0.051208,97597.0,97570.0,0.3608]
[1733842749543,0.3608,97571.0,97561.0,0.0908]
[1733842749746,0.59446825,97571.0,97561.0,0.0908]
[1733842749952,0.3608,97562.0,97561.0,0.0908]
[1733842750345,0.3608867,97562.0,97561.0,0.0908]
[1733842750646,8.67e-05,97562.0,97561.0,0.4516]
[1733842750951,0.3608,97591.0,97561.0,0.7606]
[1733842751154,0.00056001,97600.0,97590.0,0.3608]
[1733842751455,0.23366825,97630.0,97599.0,0.3608]
[1733842751655,0.23366825,97650.0,97629.0,0.3608]
[1733842751844,0.02072813,97637.0,97634.0,0.051188]
[1733842752043,0.02072813,97637.0,97629.0,0.00012]
[1733842752552,6e-05,97630.0,97629.0,0.30012]
[1733842752748,7.456e-05,97649.0,97636.0,0.3608]
[1733842752953,7.456e-05,97649.0,97647.0,0.051181]
[1733842753146,0.00056001,97665.0,97663.0,0.051173]
[1733842753451,0.00056001,97665.0,97664.0,0.00012]
[1733842753653,0.3608,97672.0,97664.0,0.00012]
[1733842753846,0.051171,97666.0,97664.0,0.00012]
[1733842754046,0.051171,97666.0,97648.0,0.3608]
[1733842754047,9.594e-05,97665.0,97648.0,0.3608]
[1733842754442,6e-05,97649.0,97648.0,0.3608]
[1733842755448,0.00609594,97665.0,97664.0,0.051172]
[1733842755650,0.3608,97692.0,97675.0,0.051166]
[1733842755851,0.1,97700.0,97691.0,0.051158]
[1733842756152,0.1,97700.0,97693.0,0.051157]
[1733842756755,0.00012873,97699.0,97693.0,0.051157]
[1733842757144,0.3608,97694.0,97675.0,0.005]
[1733842757344,0.00012873,97699.0,97691.0,0.005]
[1733842757644,0.00012873,97699.0,97692.0,0.051158]
[1733842757949,0.00012873,97699.0,97691.0,0.005]
[1733842758149,0.00112873,97699.0,97693.0,0.007]
[1733842758454,0.00112873,97699.0,97698.0,0.00012]
[1733842758956,0.05228273,97699.0,97698.0,0.00012]
[1733842759755,0.05228273,97699.0,97693.0,0.004]
[1733842759756,0.051157,97694.0,97693.0,0.004]
[1733842759953,0.411957,97694.0,97693.0,0.004]
[1733842760146,0.412017,97694.0,97692.0,0.005]
[1733842760463,0.00112873,97699.0,97693.0,0.051157]
[1733842760647,0.1,97700.0,97697.0,0.3608]
[1733842760848,0.00837913,97741.0,97736.0,0.051135]
[1733842761053,0.3608,97753.0,97740.0,0.051132]
[1733842761249,0.3608,97753.0,97728.0,0.3608]
[1733842761250,0.3608,97753.0,97742.0,0.051131]
[1733842761453,0.3608,97753.0,97752.0,0.00012]
[1733842761653,0.6608,97753.0,97752.0,0.00012]
[1733842761848,0.6608,97753.0,97710.0,0.051148]
[1733842761849,0.66092623,97753.0,97710.0,0.051148]
[1733842762053,0.66092623,97753.0,97705.0,0.3608]
[1733842762054,0.3608,97736.0,97705.0,0.3622]
[1733842762252,0.3608,97728.0,97712.0,0.3608]
[1733842762447,0.3608,97728.0,97708.0,0.3608]
[1733842762649,0.3608,97728.0,97712.0,0.051147]
[1733842762851,0.3608,97728.0,97701.0,0.00011499]
[1733842763052,0.3608,97728.0,97706.0,0.3608]
[1733842763259,0.3608,97728.0,97718.0,0.051144]
[1733842763557,0.3608,97728.0,97701.0,0.30011499]
[1733842763558,0.3608,97719.0,97701.0,0.00011499]
[1733842763757,0.23366825,97716.0,97701.0,0.00011499]
[1733842763953,6e-05,97702.0,97701.0,0.05126799]
[1733842764153,0.00011901,97718.0,97717.0,0.051145]
[1733842764349,0.00011901,97718.0,97717.0,0.411945]
[1733842764552,0.001,97728.0,97727.0,0.051139]
[1733842764948,0.59446825,97740.0,97727.0,0.051259]
[1733842765353,0.59446825,97740.0,97739.0,0.00012]
[1733842765549,0.3608747,97740.0,97739.0,0.00012]
[1733842765858,7.47e-05,97740.0,97739.0,0.00012]
[1733842767360,0.3608747,97740.0,97739.0,0.00012]
[1733842767562,0.4120077,97740.0,97739.0,0.00012]
[1733842767750,0.4130077,97740.0,97739.0,0.00012]
[1733842768249,0.4120077,97740.0,97739.0,0.00012]
[1733842768449,0.7120077,97740.0,97739.0,0.00512]
[1733842768651,0.7120077,97740.0,97701.0,0.00011499]
[1733842768652,0.051144,97718.0,97701.0,0.00011499]
[1733842768852,0.3608,97703.0,97701.0,0.00011499]
[1733842769056,6e-05,97702.0,97701.0,0.00011499]
[1733842770666,6e-05,97702.0,97701.0,0.00211499]
[1733842771367,6e-05,97702.0,97701.0,0.00611499]
[1733842773255,6e-05,97702.0,97701.0,0.36691499]
[1733842773455,6e-05,97702.0,97701.0,0.00611499]
[1733842773859,6e-05,97702.0,97701.0,0.36691499]
[1733842775670,0.22,97760.0,97701.0,0.36691499]
[1733842775671,0.23366825,97740.0,97716.0,0.051145]
[1733842775869,0.00860026,97749.0,97716.0,0.411945]
[1733842776071,0.23366825,97750.0,97745.0,0.05113]
[1733842776566,0.23366825,97750.0,97749.0,0.00012]
[1733842776759,0.051126,97752.0,97749.0,0.00012]
[1733842776959,0.3608,97754.0,97749.0,0.00012]
[1733842776960,0.05125749,97751.0,97749.0,0.00012]
[1733842777161,0.00013049,97751.0,97749.0,0.051248]
[1733842777759,0.007,97750.0,97749.0,0.052248]
[1733842777968,0.59446825,97790.0,97778.0,0.051113]
[1733842778271,0.00041,97779.0,97778.0,0.051113]
[1733842778659,0.1,97800.0,97799.0,0.051102]
[1733842778972,0.1,97800.0,97799.0,0.411962]
[1733842779168,0.10008266,97800.0,97799.0,0.411962]
[1733842780862,0.10008266,97800.0,97799.0,0.412962]
[1733842781064,0.10008266,97800.0,97799.0,0.36186]
[1733842781260,0.10008266,97800.0,97799.0,0.412962]
[1733842781562,0.10408266,97800.0,97799.0,0.412962]
[1733842781765,0.10408266,97800.0,97799.0,0.414962]
[1733842782076,0.10408266,97800.0,97799.0,0.054162]
[1733842782971,0.10408266,97800.0,97799.0,0.00306]
[1733842783275,0.10408266,97800.0,97799.0,0.00106]
[1733842783774,0.10008266,97800.0,97799.0,0.00306]
[1733842784471,0.10008266,97800.0,97799.0,0.00206]
[1733842784672,0.10008266,97800.0,97799.0,0.00506]
[1733842785172,0.3608,97813.0,97799.0,0.00506]
[1733842785364,0.23366825,97840.0,97831.0,0.051085]
[1733842785365,0.3608,97838.0,97831.0,0.051085]
[1733842785565,0.3608,97838.0,97821.0,0.3608]
[1733842785566,0.02076683,97837.0,97821.0,0.3608]
[1733842785959,0.02076683,97837.0,97836.0,0.051082]
[1733842786163,0.02087667,97837.0,97836.0,0.051082]
[1733842786565,0.00010984,97837.0,97836.0,0.051082]
[1733842786768,0.00010984,97837.0,97836.0,0.411882]
[1733842787869,0.00010984,97837.0,97836.0,0.412882]
[1733842788371,0.00010984,97837.0,97836.0,0.052082]
[1733842788565,0.00010984,97837.0,97836.0,0.001]
[1733842788761,0.00010984,97837.0,97836.0,0.052082]
[1733842788971,0.00610984,97837.0,97836.0,0.052082]
[1733842790770,0.00310984,97837.0,97836.0,0.052082]
[1733842791471,8.4e-07,97837.0,97836.0,0.052082]
[1733842791678,8.4e-07,97837.0,97836.0,0.412882]
[1733842792379,0.00012795,97837.0,97836.0,0.412882]
[1733842793773,9.5e-07,97837.0,97836.0,0.412882]
[1733842796675,9.5e-07,97837.0,97836.0,0.811582]
[1733842797170,0.41186,97878.0,97836.0,0.4605]
[1733842797371,0.051066,97867.0,97865.0,0.051067]
[1733842797575,0.051067,97866.0,97862.0,0.051069]
[1733842797773,0.051067,97866.0,97848.0,0.3608]
[1733842797774,0.3608,97869.0,97848.0,0.3608]
[1733842797974,0.3608,97869.0,97868.0,0.051065]
[1733842798166,0.36089123,97869.0,97868.0,0.051125]
[1733842799677,0.36089123,97869.0,97868.0,0.052125]
[1733842800270,0.36089123,97869.0,97868.0,0.00106]
[1733842800575,0.36089123,97869.0,97868.0,0.052125]
[1733842800576,0.36589123,97869.0,97868.0,0.052125]
[1733842801875,0.00509123,97869.0,97868.0,0.052125]
[1733842802081,2.3e-07,97869.0,97868.0,0.052125]
[1733842802377,0.79446825,97900.0,97868.0,0.352125]
[1733842802378,2.3e-07,97886.0,97868.0,0.352125]
[1733842802579,2.3e-07,97886.0,97885.0,0.772657]
[1733842802781,2.3e-07,97886.0,97885.0,0.772717]
[1733842803276,0.00012745,97886.0,97885.0,0.772717]
[1733842803872,0.00012745,97886.0,97885.0,0.773717]
[1733842804279,0.00012745,97886.0,97885.0,0.052117]
[1733842804482,0.36092745,97886.0,97885.0,0.00106]
[1733842804670,0.36092745,97886.0,97875.0,9.36e-05]
[1733842804671,0.051061,97876.0,97875.0,9.36e-05]
[1733842804980,0.30112745,97886.0,97875.0,9.36e-05]
[1733842804981,0.23366825,97885.0,97875.0,9.36e-05]
[1733842805170,0.00112745,97886.0,97885.0,0.051057]
[1733842805476,0.00012745,97886.0,97885.0,0.051057]
[1733842806079,0.00012745,97886.0,97885.0,0.411857]
[1733842806276,0.00012745,97886.0,97885.0,0.051057]
[1733842806477,0.00012745,97886.0,97885.0,0.411857]
[1733842807665,0.00012745,97886.0,97876.0,0.411861]
[1733842807666,0.00012745,97886.0,97876.0,0.3608]
[1733842807865,0.00012745,97886.0,97875.0,9.36e-05]
[1733842807866,0.3608,97879.0,97875.0,9.36e-05]
[1733842808075,0.411858,97882.0,97880.0,0.051059]
[1733842808274,0.051061,97876.0,97875.0,9.36e-05]
[1733842808474,0.051067,97865.0,97843.0,0.051078]
[1733842808674,0.23366825,97853.0,97843.0,0.051078]
[1733842808875,0.23366825,97853.0,97852.0,0.051074]
[1733842809079,0.23366825,97853.0,97822.0,0.051089]
[1733842809080,0.051075,97850.0,97847.0,0.051076]
[1733842809278,0.051075,97850.0,97828.0,0.051086]
[1733842809279,0.23366825,97857.0,97844.0,0.3608]
[1733842809574,0.23366825,97857.0,97856.0,0.051072]
[1733842809779,0.00010918,97857.0,97856.0,0.051072]
[1733842810975,0.00010918,97857.0,97844.0,0.004]
[1733842811172,0.051073,97854.0,97843.0,0.0104]
[1733842811374,0.23366825,97853.0,97851.0,0.051074]
[1733842811584,0.3608,97856.0,97850.0,0.051075]
[1733842811585,0.051072,97855.0,97850.0,0.051075]
[1733842811772,0.051072,97855.0,97853.0,0.051073]
[1733842812075,0.051072,97855.0,97854.0,6e-05]
[1733842812681,0.3608,97856.0,97838.0,0.051081]
[1733842812981,0.36775999,97839.0,97838.0,0.051081]
[1733842813181,0.00695999,97839.0,97838.0,0.051081]
[1733842814181,0.00695999,97839.0,97838.0,0.052081]
[1733842814682,9.9e-07,97839.0,97838.0,0.058081]
[1733842814889,1.8e-07,97857.0,97845.0,0.051077]
[1733842815186,1.8e-07,97857.0,97856.0,0.411872]
[1733842816779,1.8e-07,97857.0,97856.0,0.051072]
[1733842817176,1.8e-07,97857.0,97856.0,0.351072]
[1733842817377,2.3e-07,97886.0,97885.0,0.051057]
[1733842817578,2.3e-07,97886.0,97885.0,0.411857]
[1733842817780,2.3e-07,97886.0,97885.0,0.411917]
[1733842818491,9.334e-05,97886.0,97885.0,0.411917]
[1733842818878,0.00109334,97886.0,97885.0,0.411917]
[1733842819479,0.00109334,97886.0,97885.0,0.051117]
[1733842819677,0.00109334,97886.0,97885.0,0.411917]
[1733842819881,0.00209334,97886.0,97885.0,0.051117]
[1733842821184,3.4e-07,97886.0,97885.0,0.051117]
[1733842822188,8.634e-05,97886.0,97885.0,0.051117]
[1733842822594,3.4e-07,97886.0,97885.0,0.051117]
[1733842824987,0.36080034,97886.0,97885.0,6e-05]
[1733842825188,0.66080034,97886.0,97854.0,0.1824595]
[1733842825492,0.66080034,97886.0,97841.0,0.36317242]
[1733842825493,0.051073,97854.0,97849.0,0.1824595]
[1733842825697,0.3608,97860.0,97853.0,0.051073]
[1733842825698,0.00012,97855.0,97853.0,0.051073]
[1733842825887,0.3608,97860.0,97839.0,0.5432595]
[1733842825888,0.00010964,97854.0,97845.0,0.1824595]
[1733842826092,0.00010964,97854.0,97853.0,0.051073]
[1733842826291,0.051076,97849.0,97844.0,0.051078]
[1733842826588,0.051076,97849.0,97834.0,0.60407933]
[1733842826589,0.05108,97841.0,97835.0,0.051082]
[1733842826789,0.3608,97836.0,97835.0,0.051082]
[1733842827891,0.3608,97836.0,97835.0,0.053082]
[1733842828397,0.3608,97836.0,97835.0,0.051082]
[1733842828593,0.3608,97836.0,97835.0,0.054082]
[1733842828894,0.00012,97845.0,97835.0,0.054082]
[1733842828895,0.00012,97845.0,97843.0,0.051079]
[1733842829895,0.051198,97845.0,97843.0,0.051079]
[1733842830686,0.00012,97845.0,97843.0,0.051079]
[1733842830893,0.00012,97845.0,97843.0,0.055079]
[1733842831196,1e-06,97845.0,97844.0,0.3608]
[1733842831591,6.4e-07,97854.0,97853.0,0.051073]
[1733842831792,6.4e-07,97854.0,97853.0,0.411873]
[1733842831990,6.4e-07,97854.0,97853.0,0.411933]
[1733842832393,6.4e-07,97854.0,97853.0,0.711933]
[1733842832696,6.4e-07,97854.0,97853.0,0.411933]
[1733842833493,6.4e-07,97854.0,97853.0,0.711933]
[1733842833998,6.4e-07,97854.0,97853.0,0.74895904]
[1733842834203,0.0051073,97899.0,97853.0,0.74895904]
[1733842834498,0.0051073,97899.0,97895.0,0.051051]
[1733842835200,0.36089395,97896.0,97895.0,0.051111]
[1733842835498,9.395e-05,97896.0,97895.0,0.051111]
[1733842837202,0.00609395,97896.0,97895.0,0.052111]
[1733842837703,0.00609395,97896.0,97895.0,0.00106]
[1733842837899,0.051055,97889.0,97874.0,0.3608]
[1733842838099,0.00609395,97896.0,97879.0,0.05106]
[1733842838100,0.23366825,97884.0,97879.0,0.05106]
[1733842838289,0.00012,97875.0,97874.0,0.3608]
[1733842838494,0.00012,97875.0,97874.0,0.051062]
[1733842838792,0.00012,97875.0,97862.0,0.3608]
[1733842838793,0.051066,97868.0,97862.0,0.051068]
[1733842838992,0.051068,97864.0,97860.0,0.05107]
[1733842839187,0.3608,97867.0,97840.0,0.3608]
[1733842839390,0.23366825,97860.0,97859.0,0.05107]
[1733842839596,0.23366825,97860.0,97849.0,0.3608]
[1733842839597,0.3608,97867.0,97866.0,0.051127]
[1733842839994,0.36092189,97867.0,97866.0,6e-05]
[1733842840190,0.36092189,97867.0,97829.0,0.54310683]
[1733842840191,0.48210706,97867.0,97831.0,0.051085]
[1733842840393,0.12184709,97863.0,97848.0,0.3608]
[1733842840591,0.36092189,97867.0,97866.0,0.051067]
[1733842841200,0.36092189,97867.0,97866.0,6e-05]
[1733842842298,0.48276898,97867.0,97866.0,0.0019236]
[1733842842497,0.36092189,97867.0,97866.0,0.0019236]
[1733842842693,0.36092189,97867.0,97866.0,0.0529906]
[1733842842694,0.36192189,97867.0,97866.0,0.0529906]
[1733842843499,0.36192189,97867.0,97866.0,0.0019236]
[1733842843700,0.36192189,97867.0,97853.0,0.051073]
[1733842843903,0.35553604,97863.0,97851.0,0.3608]
[1733842844105,0.23366825,97863.0,97862.0,0.051069]
[1733842844298,0.36092189,97867.0,97865.0,0.051067]
[1733842844605,0.48278968,97867.0,97866.0,0.00506]
[1733842844998,0.48279236,97867.0,97866.0,0.00506]
[1733842845202,0.48279236,97867.0,97866.0,0.00306]
[1733842845410,0.36092189,97867.0,97866.0,0.051127]
[1733842845610,0.36092189,97867.0,97866.0,6e-05]
[1733842845901,0.48279236,97867.0,97866.0,6e-05]
[1733842846106,0.48679236,97867.0,97866.0,6e-05]
[1733842846307,0.36492189,97867.0,97866.0,6e-05]
[1733842847111,0.5963999,97867.0,97866.0,6e-05]
[1733842847300,0.41460166,97867.0,97866.0,6e-05]
[1733842847496,0.71460166,97867.0,97866.0,6e-05]
[1733842847695,0.051079,97842.0,97836.0,0.051082]
[1733842847896,0.3608,97841.0,97828.0,0.3608]
[1733842848108,0.3608,97841.0,97840.0,0.05108]
[1733842849709,0.3608,97841.0,97840.0,0.05308]
[1733842849906,0.3608,97841.0,97840.0,0.002]
[1733842850600,0.3608,97841.0,97806.0,0.051098]
[1733842850601,0.051089,97824.0,97806.0,0.051098]
[1733842850802,0.411889,97824.0,97807.0,0.051097]
[1733842851002,0.411949,97824.0,97804.0,0.3608]
[1733842851509,0.411949,97824.0,97815.0,0.051093]
[1733842851702,0.412949,97824.0,97823.0,0.0081057]
[1733842851901,0.412949,97824.0,97823.0,0.0131057]
[1733842852413,0.411949,97824.0,97823.0,0.0081057]
[1733842852615,0.411949,97824.0,97823.0,0.0051057]
[1733842853116,0.42087963,97824.0,97823.0,0.0051057]
[1733842854311,0.78167963,97824.0,97823.0,0.0051057]
[1733842854505,0.051104,97796.0,97793.0,0.051105]
[1733842854702,0.051104,97796.0,97791.0,0.051106]
[1733842854909,0.051106,97792.0,97787.0,0.051108]
[1733842855114,6e-05,97794.0,97792.0,0.051105]
[1733842855302,0.51125545,97797.0,97792.0,0.051105]
[1733842855501,9.485e-05,97796.0,97772.0,0.36948952]
[1733842855701,9.485e-05,97796.0,97795.0,0.051104]
[1733842856012,0.15232545,97819.0,97783.0,0.3608]
[1733842856013,0.36962023,97819.0,97793.0,0.3608]
[1733842856211,0.15045545,97810.0,97809.0,0.051096]
[1733842856405,0.3608,97811.0,97809.0,0.051096]
[1733842856712,0.3608,97811.0,97810.0,0.051096]
[1733842856915,0.36089405,97811.0,97810.0,0.051096]
[1733842857304,0.36089405,97811.0,97793.0,0.3608]
[1733842857504,0.36089405,97811.0,97791.0,0.009]
[1733842857505,0.51125545,97803.0,97791.0,0.009]
[1733842857712,0.51125545,97803.0,97792.0,0.051105]
[1733842857908,0.51125545,97803.0,97801.0,0.0511]
[1733842858103,0.0511,97802.0,97796.0,0.051103]
[1733842858303,0.0511,97802.0,97797.0,0.051103]
[1733842858511,0.051163,97797.0,97792.0,0.051105]
[1733842858717,0.001,97796.0,97794.0,0.051104]
[1733842859218,0.3608,97795.0,97794.0,0.051104]
[1733842859513,0.3608,97795.0,97783.0,0.3608]
[1733842859712,0.3608,97795.0,97764.0,0.05112]
[1733842859713,0.3608,97784.0,97764.0,0.05112]
[1733842859908,0.3608,97770.0,97757.0,0.02092693]
[1733842860103,0.3608,97770.0,97766.0,0.051119]
[1733842860310,0.051113,97778.0,97757.0,0.02092693]
[1733842860510,0.3608,97771.0,97757.0,0.02092693]
[1733842860715,0.3608,97771.0,97770.0,0.051117]
[1733842860915,0.051112,97781.0,97778.0,0.051113]
[1733842861215,8.823e-05,97794.0,97777.0,0.00659999]
[1733842861406,0.20156245,97790.0,97784.0,0.051109]
[1733842861715,8.823e-05,97794.0,97770.0,0.051117]
[1733842861716,0.051116,97772.0,97770.0,0.051117]
[1733842861905,0.411916,97772.0,97770.0,0.051117]
[1733842862105,6e-05,97771.0,97770.0,0.051117]
[1733842862415,6e-05,97771.0,97769.0,8.198e-05]
[1733842862416,0.051117,97770.0,97769.0,8.198e-05]
[1733842862917,0.051177,97770.0,97769.0,8.198e-05]
[1733842863415,0.051177,97770.0,97769.0,0.36088198]
[1733842863416,6e-05,97770.0,97769.0,0.36088198]
[1733842863615,1e-06,97770.0,97769.0,0.66088198]
[1733842863913,1e-06,97770.0,97769.0,0.76867925]
[1733842864115,0.051094,97815.0,97769.0,0.87107925]
[1733842864312,0.00873555,97828.0,97795.0,0.051104]
[1733842864510,0.00873555,97828.0,97827.0,0.051087]
[1733842864721,0.3608,97839.0,97815.0,0.3608]
[1733842864722,0.3608,97839.0,97825.0,0.051088]
[1733842864918,0.3608,97839.0,97824.0,0.3608]
[1733842865110,0.3608,97839.0,97805.0,0.3608]
[1733842865111,0.051091,97819.0,97805.0,0.3608]
[1733842865425,0.051091,97819.0,97793.0,0.36752]
[1733842865426,6e-05,97806.0,97801.0,0.3608]
[1733842865610,0.0511,97803.0,97801.0,0.0511]
[1733842865811,0.051103,97796.0,97795.0,0.009]
[1733842866122,0.051163,97796.0,97795.0,0.009]
[1733842866507,0.051104,97794.0,97793.0,0.00672]
[1733842866914,0.351164,97794.0,97793.0,0.00672]
[1733842867913,0.051117,97770.0,97769.0,8.198e-05]
[1733842868123,0.3608,97770.0,97769.0,8.198e-05]
[1733842868309,0.36086,97770.0,97769.0,8.198e-05]
[1733842868510,6e-05,97770.0,97769.0,8.198e-05]
[1733842869213,0.00306,97770.0,97769.0,8.198e-05]
[1733842869915,6e-05,97770.0,97769.0,0.00408198]
[1733842870820,6e-05,97770.0,97769.0,0.00708198]
[1733842871215,0.36086,97770.0,97769.0,0.00708198]
[1733842872114,0.36086,97770.0,97769.0,0.00308198]
[1733842872818,0.3608,97789.0,97788.0,0.051108]
[1733842873022,0.3608,97789.0,97776.0,0.3608]
[1733842873315,0.411907,97789.0,97788.0,0.00012]
[1733842873519,0.411907,97789.0,97769.0,0.00408198]
[1733842873520,0.051117,97770.0,97769.0,0.00408198]
[1733842873724,0.772717,97770.0,97769.0,0.00408198]
[1733842873911,0.7216,97770.0,97769.0,0.00608198]
[1733842874724,0.7216,97770.0,97769.0,0.00308198]
[1733842874923,0.7216,97770.0,97769.0,0.00408198]
[1733842875308,0.7226,97770.0,97769.0,0.00108198]
[1733842875716,0.3618,97770.0,97769.0,0.00108198]
[1733842875914,0.3638,97770.0,97769.0,0.00108198]
[1733842876413,0.36392798,97770.0,97769.0,0.00108198]
[1733842876620,0.36392798,97770.0,97769.0,8.198e-05]
[1733842876928,0.66392798,97770.0,97769.0,9.8e-07]
[1733842877115,0.68405754,97770.0,97737.0,0.3608]
[1733842877420,0.68405754,97770.0,97744.0,0.05113]
[1733842877421,0.411928,97750.0,97744.0,0.05113]
[1733842877628,0.411928,97750.0,97737.0,0.3608]
[1733842877826,0.411928,97750.0,97745.0,0.05113]
[1733842878024,0.3608,97760.0,97740.0,0.15045545]
[1733842878320,0.00312798,97770.0,97769.0,0.051117]
[1733842878528,0.00112798,97770.0,97769.0,0.051117]
[1733842878717,0.00112798,97770.0,97769.0,0.051237]
[1733842879023,0.00012798,97770.0,97769.0,0.051237]
[1733842879722,0.00112798,97770.0,97769.0,0.00612]
[1733842880327,0.00012798,97770.0,97769.0,0.00012]
[1733842880519,0.00012798,97770.0,97769.0,0.36592]
[1733842880720,0.12162801,97786.0,97769.0,0.36592]
[1733842880925,0.34364,97800.0,97796.0,0.051103]
[1733842881126,0.12162801,97803.0,97793.0,0.3608]
[1733842881433,6e-05,97806.0,97793.0,0.3608]
[1733842881434,6e-05,97806.0,97805.0,0.051099]
[1733842881726,6e-05,97806.0,97805.0,0.00012]
[1733842881922,0.00015486,97806.0,97805.0,0.00012]
[1733842883025,0.00015486,97806.0,97805.0,0.00212]
[1733842883726,0.00015486,97806.0,97805.0,0.00012]
[1733842883727,0.00115486,97806.0,97805.0,0.00012]
[1733842884432,0.00115486,97806.0,97805.0,0.00212]
[1733842885333,0.00015486,97806.0,97805.0,0.00212]
[1733842887123,0.00015486,97806.0,97805.0,0.00012]
[1733842887430,0.00015486,97806.0,97805.0,0.00212]
[1733842887822,0.00015486,97806.0,97805.0,0.053219]
[1733842888128,0.00115486,97806.0,97805.0,0.051219]
[1733842888320,0.00115486,97806.0,97805.0,0.00012]
[1733842888321,0.05225286,97806.0,97805.0,0.00012]
[1733842888522,0.00015486,97806.0,97805.0,0.00012]
[1733842888731,0.00315486,97806.0,97805.0,0.00012]
[1733842889130,0.00895641,97826.0,97825.0,0.051088]
[1733842889332,0.00895641,97826.0,97815.0,0.3608]
[1733842889633,0.3608,97827.0,97805.0,0.001]
[1733842889634,0.051094,97814.0,97805.0,0.001]
[1733842889832,0.15045545,97815.0,97805.0,0.001]
[1733842890138,0.051158,97806.0,97805.0,0.001]
[1733842890331,6e-05,97806.0,97805.0,0.001]